fUST/lending_fUST_20250720
["ID","MTS","AMOUNT","RATE_DAILY","PERIOD"]
[373384503,1752981044210,-1895.86,0.00020923,2]
[373384504,1752981044219,-473.50366505,0.00020923,2]
[373384505,1752981044229,-4412.08,0.00020923,2]
[373384506,1752981044239,-460.0,0.00020924,2]
[373384507,1752981044249,-460.0,0.00020924,2]
[373384508,1752981044258,-730.63,0.00020924,2]
[373384509,1752981044268,-3000.0,0.00021,2]
[373384510,1752981044280,-3000.0,0.0002101,2]
[373384511,1752981044292,-3000.0,0.0002102,2]
[373384512,1752981044303,-500.0,0.0002102,2]
[373384513,1752981044313,-500.0,0.0002102,2]
[373384514,1752981044323,-1859.27,0.00021029,2]
[373384515,1752981044334,-3000.0,0.0002103,2]
[373384516,1752981044343,-1215.46,0.0002103,2]
[373384517,1752981044353,-572.53,0.0002103,2]
[373384518,1752981044363,-711.08,0.00021032,2]
[373384519,1752981044373,-500.0,0.00021039,2]
[373384520,1752981044382,-3000.0,0.0002104,2]
[373384521,1752981044393,-3000.0,0.0002105,2]
[373384522,1752981044403,-3000.0,0.0002106,2]
[373384523,1752981044414,-500.0,0.00021064,2]
[373384524,1752981044424,-500.0,0.00021067,2]
[373384525,1752981044433,-500.0,0.00021067,2]
[373384526,1752981044443,-3000.0,0.0002107,2]
[373384527,1752981044452,-4863.50045578,0.00021072,4]
[373384528,1752981044462,-500.0,0.00021079,2]
[373384529,1752981044471,-500.0,0.00021079,2]
[373384530,1752981044480,-177.57295202,0.00021079,2]
[373384531,1752981044490,-3000.0,0.0002108,2]
[373384532,1752981044499,-2613.06577485,0.00021087,2]
[373384533,1752981044508,-3000.0,0.0002109,2]
[373384534,1752981044518,-3000.0,0.000211,2]
[373384535,1752981044528,-3000.0,0.0002111,2]
[373384536,1752981044537,-3000.0,0.0002112,2]
[373384537,1752981044547,-3000.0,0.0002113,2]
[373384538,1752981044557,-3000.0,0.0002114,2]
[373384539,1752981044567,-352.01825787,0.00021147,2]
[373384540,1752981044576,-3000.0,0.0002115,2]
[373384541,1752981044586,-3000.0,0.0002116,2]
[373384542,1752981044595,-1038.07713824,0.0002116,2]
[373384543,1752981044605,-3000.0,0.0002117,2]
[373384544,1752981044614,-3000.0,0.0002118,2]
[373384545,1752981044624,-3000.0,0.0002119,2]
[373384546,1752981044633,-460.0,0.00021195,2]
[373384547,1752981044643,-460.0,0.00021195,2]
[373384548,1752981044652,-460.0,0.00021195,2]
[373384549,1752981044661,-460.0,0.00021195,2]
[373384550,1752981044671,-460.0,0.00021195,2]
[373384551,1752981044680,-547.76,0.00021196,2]
[373384552,1752981044690,-593.65,0.00021196,2]
[373384553,1752981044699,-460.0,0.00021197,2]
[373384554,1752981044708,-500.0,0.00021197,2]
[373384555,1752981044718,-1015.85,0.00021197,2]
[373384556,1752981044727,-460.0,0.00021197,2]
[373384557,1752981044736,-1069.63,0.00021197,2]
[373384558,1752981044745,-460.0,0.00021197,2]
[373384559,1752981044755,-460.0,0.00021197,2]
[373384560,1752981044764,-869.68,0.00021197,2]
[373384561,1752981044773,-674.3,0.00021197,2]
[373384562,1752981044782,-1895.86,0.00021197,2]
[373384563,1752981044791,-4412.08,0.00021197,2]
[373384564,1752981044801,-460.0,0.00021198,2]
[373384565,1752981044810,-460.0,0.00021198,2]
[373384566,1752981044819,-730.63,0.00021198,2]
[373384567,1752981044829,-3000.0,0.000212,2]
[373384568,1752981044838,-3000.0,0.0002121,2]
[373384569,1752981044847,-3000.0,0.0002122,2]
[373384570,1752981044857,-3000.0,0.0002123,2]
[373384571,1752981044866,-3000.0,0.0002124,2]
[373384572,1752981044875,-3000.0,0.0002125,2]
[373384573,1752981044884,-4640.78395,0.0002126,2]
[373384574,1752981044892,-1859.27,0.00021303,2]
[373384575,1752981044902,-1215.46,0.00021304,2]
[373384576,1752981044911,-572.53,0.00021304,2]
[373384577,1752981044921,-711.08,0.00021306,2]
[373384578,1752981044930,-4863.50045578,0.00021314,5]
[373384579,1752981044939,-587.0,0.00021324,2]
[373384580,1752981044949,-500.0,0.00021341,2]
[373384581,1752981044958,-500.0,0.00021341,2]
[373384582,1752981044967,-460.0,0.00021469,2]
[373384583,1752981044976,-308.28565607,0.00021469,2]
[373384584,1752981044985,-190.36018853,0.00021469,2]
[373384585,1752981044995,-460.0,0.00021469,2]
[373384586,1752981045004,-460.0,0.00021469,2]
[373384587,1752981045013,-547.76,0.0002147,2]
[373384588,1752981045023,-593.65,0.0002147,2]
[373384589,1752981045033,-460.0,0.00021471,2]
[373384590,1752981045043,-1015.85,0.00021471,2]
[373384591,1752981045054,-460.0,0.00021471,2]
[373384592,1752981045065,-1069.63,0.00021471,2]
[373384593,1752981045075,-460.0,0.00021471,2]
[373384594,1752981045086,-869.68,0.00021471,2]
[373384595,1752981045097,-674.3,0.00021471,2]
[373384596,1752981045108,-1895.86,0.00021471,2]
[373384597,1752981045117,-4412.08,0.00021471,2]
[373384598,1752981045128,-460.0,0.00021472,2]
[373384599,1752981045137,-460.0,0.00021472,2]
[373384600,1752981045151,-730.63,0.00021472,2]
[373384601,1752981045160,-4863.50045578,0.00021555,5]
[373384602,1752981045170,-174.44900746,0.00021568,2]
[373384603,1752981045179,-1859.27,0.00021577,2]
[373384604,1752981045190,-1215.46,0.00021578,2]
[373384605,1752981045200,-572.53,0.00021578,2]
[373384606,1752981045209,-711.08,0.0002158,2]
[373384607,1752981045221,-512.46627473,0.00021587,2]
[373384608,1752981045231,-500.0,0.00021615,2]
[373384609,1752981045241,-500.0,0.00021615,2]
[373384610,1752981045251,-460.0,0.00021743,2]
[373384612,1752981045262,-460.0,0.00021743,2]
[373384614,1752981045271,-460.0,0.00021743,2]
[373384620,1752981045383,-547.76,0.00021744,2]
[373384621,1752981045393,-593.65,0.00021744,2]
[373384622,1752981045403,-441.53016635,0.00021745,2]
[373384623,1752981045413,-1015.85,0.00021745,2]
[373384624,1752981045422,-460.0,0.00021745,2]
[373384625,1752981045432,-1069.63,0.00021745,2]
[373384626,1752981045441,-460.0,0.00021745,2]
[373384627,1752981045450,-869.68,0.00021745,2]
[373384628,1752981045460,-674.3,0.00021745,2]
[373384629,1752981045470,-1895.86,0.00021745,2]
[373384630,1752981045480,-4412.08,0.00021745,2]
[373384631,1752981045489,-460.0,0.00021746,2]
[373384632,1752981045499,-460.0,0.00021746,2]
[373384633,1752981045509,-730.63,0.00021746,2]
[373384634,1752981045518,-4863.50045578,0.00021797,6]
[373384635,1752981045529,-1859.27,0.00021851,2]
[373384636,1752981045539,-1215.46,0.00021852,2]
[373384637,1752981045549,-572.53,0.00021852,2]
[373384638,1752981045558,-711.08,0.00021854,2]
[373384639,1752981045568,-500.0,0.00021889,2]
[373384640,1752981045578,-500.0,0.00021889,2]
[373384641,1752981045589,-151.56526372,0.00021889,2]
[373384642,1752981045601,-151.0,0.00021889,2]
[373384643,1752981045610,-500.0,0.00021917,2]
[373384644,1752981045620,-500.0,0.00021917,2]
[373384645,1752981045630,-500.0,0.00021917,2]
[373384646,1752981045639,-500.0,0.00021917,2]
[373384647,1752981045649,-500.0,0.00021917,2]
[373384648,1752981045658,-192.28591105,0.00021917,2]
[373384649,1752981045667,-150.09319079,0.00021918,2]
[373384650,1752981045677,-1026.45015052,0.00022,15]
[373384651,1752981045686,-160.0,0.00022,2]
[373384653,1752981045696,-460.0,0.00022017,2]
[373384654,1752981045706,-460.0,0.00022017,2]
[373384655,1752981045716,-460.0,0.00022017,2]
[373384656,1752981045725,-547.76,0.00022018,2]
[373384657,1752981045735,-593.65,0.00022018,2]
[373384658,1752981045744,-1015.85,0.00022019,2]
[373384659,1752981045754,-460.0,0.00022019,2]
[373384660,1752981045764,-1069.63,0.00022019,2]
[373384661,1752981045773,-529.06632325,0.00022019,2]
[373384663,1752981045783,-869.68,0.00022019,2]
[373384664,1752981045792,-674.3,0.00022019,2]
[373384665,1752981045801,-1895.86,0.00022019,2]
[373384666,1752981045811,-4412.08,0.00022019,2]
[373384667,1752981045821,-460.0,0.0002202,2]
[373384668,1752981045831,-460.0,0.0002202,2]
[373384669,1752981045841,-730.63,0.0002202,2]
[373384670,1752981045852,-4863.50045578,0.00022038,6]
[373384671,1752981045862,-1859.27,0.00022125,2]
[373384672,1752981045871,-1215.46,0.00022126,2]
[373384673,1752981045881,-572.53,0.00022126,2]
[373384675,1752981045890,-711.08,0.00022128,2]
[373384676,1752981045900,-500.0,0.0002216,2]
[373384677,1752981045909,-407.0,0.0002216,2]
[373384678,1752981045919,-500.0,0.00022163,2]
[373384679,1752981045929,-500.0,0.00022163,2]
[373384680,1752981045938,-199.77096402,0.00022163,2]
[373384681,1752981045948,-207.4,0.00022235,2]
[373384682,1752981045957,-4863.50045578,0.00022279,6]
[373384683,1752981045966,-460.0,0.00022291,2]
[373384684,1752981045977,-460.0,0.00022291,2]
[373384685,1752981045988,-460.0,0.00022291,2]
[373384687,1752981045998,-547.76,0.00022292,2]
[373384688,1752981046007,-593.65,0.00022292,2]
[373384689,1752981046018,-1015.85,0.00022293,2]
[373384690,1752981046028,-460.0,0.00022293,2]
[373384691,1752981046037,-1069.63,0.00022293,2]
[373384692,1752981046046,-869.68,0.00022293,2]
[373384693,1752981046055,-674.3,0.00022293,2]
[373384694,1752981046064,-1895.86,0.00022293,2]
[373384695,1752981046073,-4412.08,0.00022293,2]
[373384696,1752981046083,-460.0,0.00022294,2]
[373384697,1752981046095,-460.0,0.00022294,2]
[373384698,1752981046104,-730.63,0.00022294,2]
[373384699,1752981046113,-224.048,0.00022354,2]
[373384700,1752981046122,-150.103,0.00022354,2]
[373384701,1752981046132,-150.317,0.00022354,2]
[373384702,1752981046142,-150.0,0.00022354,2]
[373384703,1752981046154,-647.0,0.00022354,2]
[373384704,1752981046164,-2156.0,0.00022354,2]
[373384705,1752981046173,-968.0,0.00022354,2]
[373384706,1752981046182,-216.008022,0.00022354,7]
[373384707,1752981046193,-153.245442,0.00022354,7]
[373384708,1752981046202,-151.0,0.00022354,7]
[373384709,1752981046212,-151.610802,0.00022374,2]
[373384710,1752981046222,-1859.27,0.00022399,2]
[373384711,1752981046232,-1215.46,0.000224,2]
[373384712,1752981046241,-572.53,0.000224,2]
[373384713,1752981046250,-711.08,0.00022402,2]
[373384714,1752981046259,-500.0,0.00022437,2]
[373384715,1752981046269,-500.0,0.00022437,2]
[373384716,1752981046278,-4863.50045578,0.00022521,7]
[373384717,1752981046287,-460.0,0.00022565,2]
[373384718,1752981046297,-460.0,0.00022565,2]
[373384719,1752981046306,-460.0,0.00022565,2]
[373384720,1752981046317,-151.0,0.00022566,7]
[373384721,1752981046326,-547.76,0.00022566,2]
[373384722,1752981046336,-593.65,0.00022566,2]
[373384723,1752981046346,-1015.85,0.00022567,2]
[373384724,1752981046355,-276.11894036,0.00022567,2]
[373384725,1752981046364,-1069.63,0.00022567,2]
[373384726,1752981046374,-869.68,0.00022567,2]
[373384727,1752981046384,-674.3,0.00022567,2]
[373384728,1752981046393,-1895.86,0.00022567,2]
[373384729,1752981046403,-4412.08,0.00022567,2]
[373384730,1752981046413,-460.0,0.00022568,2]
[373384731,1752981046423,-460.0,0.00022568,2]
[373384732,1752981046433,-730.63,0.00022568,2]
[373384733,1752981046445,-1355.54,0.000226,2]
[373384734,1752981046456,-1859.27,0.00022673,2]
[373384735,1752981046465,-1215.46,0.00022674,2]
[373384736,1752981046476,-572.53,0.00022674,2]
[373384737,1752981046486,-711.08,0.00022676,2]
[373384738,1752981046496,-500.0,0.00022711,2]
[373384739,1752981046506,-283.14999773,0.00022711,2]
[373384740,1752981046516,-199.825654,0.00022739,3]
[373384741,1752981046527,-151.0,0.00022762,7]
[373384742,1752981046538,-151.0,0.00022762,7]
[373384743,1752981046547,-196.283986,0.00022762,7]
[373384744,1752981046557,-216.396783,0.00022762,7]
[373384745,1752981046568,-216.396783,0.00022762,7]
[373384746,1752981046578,-4863.50045578,0.00022762,7]
[373384747,1752981046588,-214.5637056,0.000228,7]
[373384748,1752981046597,-460.0,0.00022839,2]
[373384749,1752981046606,-579.14249376,0.00022839,2]
[373384750,1752981046616,-460.0,0.00022839,2]
[373384751,1752981046626,-547.76,0.0002284,2]
[373384752,1752981046637,-593.65,0.0002284,2]
[373384753,1752981046647,-1015.85,0.00022841,2]
[373384754,1752981046657,-1069.63,0.00022841,2]
[373384755,1752981046667,-869.68,0.00022841,2]
[373384756,1752981046676,-674.3,0.00022841,2]
[373384757,1752981046686,-1895.86,0.00022841,2]
[373384758,1752981046695,-4412.08,0.00022841,2]
[373384759,1752981046704,-433.7395544,0.00022842,2]
[373384760,1752981046713,-460.0,0.00022842,2]
[373384761,1752981046722,-730.63,0.00022842,2]
[373384762,1752981046732,-1859.27,0.00022947,2]
[373384763,1752981046741,-1215.46,0.00022948,2]
[373384764,1752981046750,-572.53,0.00022948,2]
[373384765,1752981046760,-711.08,0.0002295,2]
[373384766,1752981046769,-151.610802,0.00022962,3]
[373384767,1752981046778,-500.0,0.00022985,2]
[373384768,1752981046787,-215.71456056,0.00023,3]
[373384769,1752981046797,-160.0,0.00023,3]
[373384770,1752981046806,-160.0,0.00023,3]
[373384771,1752981046815,-839.59621281,0.00023,3]
[373384772,1752981046824,-525.91036056,0.00023,3]
[373384773,1752981046834,-4863.50045578,0.00023003,8]
[373384774,1752981046843,-160.0,0.00023014,7]
[373384775,1752981046853,-379.12622,0.00023029,8]
[373384776,1752981046863,-244.08170143,0.00023096,2]
[373384777,1752981046872,-460.0,0.00023113,2]
[373384778,1752981046882,-460.0,0.00023113,2]
[373384779,1752981046891,-547.76,0.00023114,2]
[373384780,1752981046899,-593.65,0.00023114,2]
[373384781,1752981046910,-1015.85,0.00023115,2]
[373384782,1752981046918,-1069.63,0.00023115,2]
[373384783,1752981046928,-869.68,0.00023115,2]
[373384784,1752981046937,-674.3,0.00023115,2]
[373384785,1752981046946,-1895.86,0.00023115,2]
[373384786,1752981046956,-4412.08,0.00023115,2]
[373384787,1752981046965,-460.0,0.00023116,2]
[373384788,1752981046974,-730.63,0.00023116,2]
[373384789,1752981046984,-805.0596288,0.00023138,2]
[373384790,1752981046993,-1859.27,0.00023221,2]
[373384791,1752981047002,-1215.46,0.00023222,2]
[373384792,1752981047011,-572.53,0.00023222,2]
[373384793,1752981047020,-711.08,0.00023224,2]
[373384794,1752981047030,-151.0,0.00023225,7]
[373384795,1752981047039,-151.0,0.00023225,7]
[373384796,1752981047048,-4863.50045578,0.00023245,8]
[373384797,1752981047057,-2200.0,0.00023247,2]
[373384798,1752981047067,-500.0,0.00023256,2]
[373384799,1752981047076,-500.0,0.00023259,2]
[373384800,1752981047085,-823.0,0.00023269,2]
[373384801,1752981047094,-460.0,0.00023387,2]
[373384802,1752981047103,-222.288037,0.00023387,2]
[373384803,1752981047113,-547.76,0.00023388,2]
[373384804,1752981047122,-593.65,0.00023388,2]
[373384805,1752981047131,-1015.85,0.00023389,2]
[373384806,1752981047141,-1069.63,0.00023389,2]
[373384807,1752981047155,-869.68,0.00023389,2]
[373384808,1752981047166,-674.3,0.00023389,2]
[373384809,1752981047175,-1895.86,0.00023389,2]
[373384810,1752981047184,-4412.08,0.00023389,2]
[373384811,1752981047194,-460.0,0.0002339,2]
[373384812,1752981047204,-730.63,0.0002339,2]
[373384813,1752981047213,-151.0,0.00023486,7]
[373384814,1752981047225,-189.644247,0.00023486,7]
[373384815,1752981047236,-4863.50045578,0.00023486,9]
[373384816,1752981047245,-1859.27,0.00023495,2]
[373384817,1752981047255,-1215.46,0.00023496,2]
[373384818,1752981047264,-572.53,0.00023496,2]
[373384819,1752981047273,-711.08,0.00023498,2]
[373384820,1752981047282,-38596.30981946,0.000235,4]
[373384821,1752981047291,-151.0,0.000235,7]
[373384822,1752981047300,-157.25750674,0.000235,4]
[373384823,1752981047309,-500.0,0.000235,9]
[373384824,1752981047318,-150.0,0.000235,5]
[373384825,1752981047328,-2000.0,0.000235,2]
[373384826,1752981047361,-151.0,0.000235,7]
[373384827,1752981047370,-151.0,0.000235,7]
[373384828,1752981047379,-151.0,0.000235,7]
[373384829,1752981047390,-331.719303,0.000235,7]
[373384830,1752981047400,-331.719303,0.000235,7]
[373384831,1752981047409,-1901.495007,0.000235,2]
[373384832,1752981047418,-500.0,0.000235,9]
[373384833,1752981047428,-151.610802,0.00023523,8]
[373384834,1752981047439,-500.0,0.00023533,2]
[373384835,1752981047448,-151.610802,0.00023561,2]
[373384836,1752981047458,-500.0,0.00023566,2]
[373384837,1752981047467,-206.0,0.0002359,2]
[373384838,1752981047477,-151.610802,0.00023601,6]
[373384839,1752981047486,-215.0738,0.00023604,2]
[373384840,1752981047496,-151.610802,0.00023635,8]
[373384841,1752981047505,-151.610802,0.00023644,4]
[373384842,1752981047515,-460.0,0.00023661,2]
[373384843,1752981047524,-547.76,0.00023662,2]
[373384844,1752981047534,-593.65,0.00023662,2]
[373384845,1752981047543,-250.0,0.00023662,2]
[373384846,1752981047553,-1015.85,0.00023663,2]
[373384847,1752981047562,-1069.63,0.00023663,2]
[373384848,1752981047571,-869.68,0.00023663,2]
[373384849,1752981047581,-674.3,0.00023663,2]
[373384850,1752981047590,-1895.86,0.00023663,2]
[373384851,1752981047599,-4412.08,0.00023663,2]
[373384852,1752981047608,-460.0,0.00023664,2]
[373384853,1752981047617,-730.63,0.00023664,2]
[373384854,1752981047626,-151.610802,0.00023715,4]
[373384855,1752981047636,-178.1416697,0.00023726,2]
[373384856,1752981047646,-1190.830115,0.00023726,2]
[373384857,1752981047655,-153.0,0.00023726,2]
[373384858,1752981047664,-178.1416697,0.00023726,2]
[373384859,1752981047673,-177.8695956,0.00023726,2]
[373384860,1752981047683,-4863.50045578,0.00023728,9]
[373384861,1752981047693,-151.610802,0.00023746,8]
[373384862,1752981047703,-151.610802,0.0002375,10]
[373384863,1752981047713,-1859.27,0.00023769,2]
[373384864,1752981047722,-1215.46,0.0002377,2]
[373384865,1752981047732,-572.53,0.0002377,2]
[373384866,1752981047741,-711.08,0.00023772,2]
[373384867,1752981047751,-151.610802,0.00023787,4]
[373384868,1752981047761,-2613.06577485,0.000238,2]
[373384869,1752981047770,-500.0,0.00023807,2]
[373384870,1752981047779,-178.0,0.00023845,2]
[373384871,1752981047788,-500.0,0.00023873,2]
[373384872,1752981047798,-500.0,0.00023873,2]
[373384873,1752981047807,-500.0,0.00023873,2]
[373384874,1752981047816,-813.64929616,0.0002388,2]
[373384875,1752981047826,-314380.50799611,0.0002388,7]
[373384876,1752981047835,-151.32176,0.0002388,7]
[373384877,1752981047845,-151.0,0.0002388,7]
[373384878,1752981047855,-151.0,0.0002388,7]
[373384879,1752981047864,-151.0,0.0002388,7]
[373384880,1752981047873,-151.0,0.0002388,7]
[373384881,1752981047882,-214.656351,0.0002388,7]
[373384882,1752981047892,-214.656351,0.0002388,7]
[373384883,1752981047901,-151.462523,0.0002388,7]
[373384884,1752981047911,-151.0,0.0002388,7]
[373384885,1752981047919,-151.0,0.0002388,7]
[373384886,1752981047928,-151.0,0.0002388,7]
[373384887,1752981047937,-151.0,0.0002388,7]
[373384888,1752981047947,-151.0,0.0002388,7]
[373384889,1752981047955,-151.0,0.0002388,7]
[373384890,1752981047964,-151.0,0.0002388,7]
[373384891,1752981047974,-303.624072,0.0002388,7]
[373384892,1752981047983,-267.564017,0.0002388,7]
[373384893,1752981047992,-303.624072,0.0002388,7]
[373384894,1752981048001,-151.0,0.0002388,7]
[373384895,1752981048010,-151.0,0.0002388,7]
[373384896,1752981048020,-153.351511,0.0002388,7]
[373384897,1752981048029,-151.0,0.0002388,7]
[373384898,1752981048038,-331.719303,0.0002388,7]
[373384899,1752981048048,-331.719303,0.0002388,7]
[373384900,1752981048057,-151.0,0.0002388,7]
[373384901,1752981048066,-151.0,0.0002388,7]
[373384902,1752981048075,-151.775212,0.0002388,7]
[373384903,1752981048085,-151.0,0.0002388,7]
[373384904,1752981048095,-151.0,0.0002388,7]
[373384905,1752981048105,-216.396783,0.0002388,7]
[373384906,1752981048114,-216.396783,0.0002388,7]
[373384907,1752981048123,-153.898566,0.0002388,7]
[373384908,1752981048133,-1881.61,0.00023881,5]
[373384909,1752981048142,-192790.42661106,0.00023888,2]
[373384910,1752981048323,-160.0,0.00023,3]
[373384911,1752981048332,-773.24475225,0.00023888,2]
[373384912,1752981048703,-28.22718715,0.00023888,2]
[373384913,1752981048714,-416.65490336,0.00023888,2]
[373384914,1752981048726,-434.05328037,0.00023888,2]
[373384915,1752981048756,-460.0,0.00018181,2]
[373384916,1752981048776,-460.0,0.00018455,2]
[373384917,1752981048785,-460.0,0.00018729,2]
[373384918,1752981048795,-19640.62617546,0.00023888,2]
[373384919,1752981048806,-16296.66033,0.00023888,2]
[373384920,1752981048818,-20407.14694144,0.00023888,2]
[373384921,1752981048830,-440.6390165,0.00023888,2]
[373384922,1752981048842,-11785.0784574,0.00023888,2]
[373384923,1752981048854,-1296.16494652,0.00023888,2]
[373384924,1752981048866,-651.75394953,0.00023888,2]
[373384925,1752981048877,-2561.5024788,0.00023888,2]
[373384926,1752981049066,-500.0,0.0001846,2]
[373384927,1752981049076,-500.0,0.0001846,2]
[373384928,1752981049085,-60.13935512,0.0001846,2]
[373384929,1752981049111,-439.86064488,0.0001846,2]
[373384930,1752981049122,-500.0,0.0001846,2]
[373384931,1752981049131,-214.77246112,0.0001846,2]
[373384932,1752981049143,-500.0,0.0001846,2]
[373384933,1752981049155,-500.0,0.0001846,2]
[373384934,1752981049169,-500.0,0.0001846,2]
[373384935,1752981049180,-500.0,0.0001846,2]
[373384936,1752981049192,-500.0,0.0001846,2]
[373384937,1752981049206,-500.0,0.0001846,2]
[373384938,1752981049217,-500.0,0.0001846,2]
[373384939,1752981049227,-500.0,0.0001846,2]
[373384940,1752981049237,-500.0,0.0001846,2]
[373384941,1752981049246,-500.0,0.0001846,2]
[373384942,1752981049257,-500.0,0.0001846,2]
[373384943,1752981049266,-500.0,0.0001846,2]
[373384944,1752981049276,-389.45340092,0.0001846,2]
[373384945,1752981049298,-110.54659908,0.0001846,2]
[373384946,1752981049307,-500.0,0.0001846,2]
[373384947,1752981049316,-268.17978939,0.0001846,2]
[373384948,1752981049325,-500.0,0.0001846,2]
[373384949,1752981049335,-480.17217066,0.0001846,2]
[373384950,1752981049344,-500.0,0.0001846,2]
[373384951,1752981049353,-500.0,0.0001846,2]
[373384952,1752981049363,-500.0,0.0001846,2]
[373384953,1752981049372,-389.85004854,0.0001846,2]
[373384954,1752981049381,-500.0,0.0001846,2]
[373384955,1752981049392,-500.0,0.0001846,2]
[373384956,1752981049401,-500.0,0.0001846,2]
[373384957,1752981049411,-500.0,0.0001846,2]
[373384958,1752981049420,-500.0,0.0001846,2]
[373384959,1752981049430,-500.0,0.0001846,2]
[373384960,1752981049439,-500.0,0.0001846,2]
[373384961,1752981049449,-2737.35139234,0.00023888,2]
[373384962,1752981081538,-337.80611606,0.00018181,2]
[373384963,1752981089898,-122.19388394,0.00018181,2]
[373384964,1752981089925,-174.2049859,0.00018182,2]
[373384965,1752981093174,-164.8331603,0.00018182,2]
[373384966,1752981094828,460.0,0.00017909,2]
[373384967,1752981095693,-174.20520106,0.00018181,2]
[373384968,1752981098919,-166.39193604,0.00018181,2]
[373384969,1752981105455,-119.4028629,0.00018181,2]
[373384970,1752981105477,-217.04327278,0.00018181,2]
[373384971,1752981107578,-169.01143639,0.00018181,2]
[373384972,1752981111004,-72.0163718,0.00018181,2]
[373384973,1752981111028,-120.9618538,0.00018182,2]
[373384974,1752981111052,-133.92300597,0.00018183,2]
[373384975,1752981112678,-154.95047714,0.00018183,2]
[373384976,1752981114189,-171.12651689,0.00018183,2]
[373384977,1752981114214,-76.05431515,0.00018355,2]
[373384978,1752981116294,-199.50418682,0.00018181,2]
[373384979,1752981120112,-162.43872283,0.00018181,2]
[373384980,1752981122831,-98.05709035,0.00018181,2]
[373384981,1752981122855,-83.90980765,0.00018181,2]
[373384982,1752981124347,-245.47212276,0.00018181,2]
[373384983,1752981126495,-130.61806959,0.00018181,2]
[373384984,1752981126518,-116.70834451,0.00018181,2]
[373384985,1752981129740,-154.83826796,0.00018181,2]
[373384986,1752981131366,-144.20991601,0.00018181,2]
[373384987,1752981131388,-8.00961987,0.00018181,2]
[373384988,1752981133014,-412.78728258,0.00018181,2]
[373384989,1752981137570,-40.13876096,0.00018181,2]
[373384990,1752981137592,-360.62266429,0.00018181,2]
[373384991,1752981139684,-99.37733571,0.00018181,2]
[373384992,1752981139706,-188.21908565,0.00018181,2]
[373384993,1752981142219,-186.89162395,0.00018181,2]
[373384994,1752981144932,-84.8892904,0.00018181,2]
[373384995,1752981144956,-118.43732918,0.00018181,2]
[373384996,1752981148204,-271.13250204,0.00018181,2]
[373384997,1752981149849,-70.43016878,0.00018181,2]
[373384998,1752981149871,-125.70530462,0.00018181,2]
[373384999,1752981152845,-294.16744271,0.00018181,2]
[373385000,1752981154929,-40.12725267,0.00018181,2]
[373385001,1752981154951,-167.26494069,0.00018181,2]
[373385002,1752981156401,-177.73811664,0.00018181,2]
[373385003,1752981159017,-114.99694267,0.00018181,2]
[373385004,1752981159049,-55.38547013,0.00018181,2]
[373385005,1752981161653,-186.37661456,0.00018181,2]
[373385006,1752981165871,-218.23791531,0.00018181,2]
[373385007,1752981165893,-61.98503248,0.00018181,2]
[373385008,1752981168961,-290.5354262,0.00018181,2]
[373385009,1752981172920,460.0,0.00017909,2]
[373385010,1752981172993,-108.47954132,0.00018181,2]
[373385011,1752981173016,-55.28157779,0.00018181,2]
[373385012,1752981175138,-230.70736475,0.00018181,2]
[373385013,1752981177855,-174.01105746,0.00018181,2]